Cogmind - Beta 13 @@@ ROGUE MODE // 2024.04.20 @ 12:52:25 Player: KoT Result: Destroyed by G-47 Trooper with Particle Gun Performance ------------- Evolutions (2) 1000 Regions Visited (3) 600 Robots Destroyed (21) 105 Value Destroyed (582) 582 Prototype IDs (0) 0 Alien Tech Used (0) 0 Bonus (0) 0 TOTAL SCORE: 2287 Bonus ------- None Cogmind --------- Core Integrity 0/550 Matter 276/300 Energy 100/100 System Corruption 1% Temperature Cool (9) Movement Core (50) Location -8/Materials Parts ------- > --- POWER (2) -------- (None) > --- PROPULSION (3) --- (None) > --- UTILITY (3) ------ (None) > --- WEAPON (3) ------- Hammer > --- INVENTORY (5) ---- Huge Storage Unit Melee Analysis Suite Assault Rifle Peak State ------------ > --- POWER ------------ Ion Engine Improved Ion Engine > --- PROPULSION ------- Improved Aluminum Leg Improved Aluminum Leg > --- UTILITY ---------- Large Storage Unit Improved Terrain Scanner Light Armor Plating > --- WEAPON ----------- Subdweller Beam Cannon Hammer > --- INVENTORY -------- Huge Storage Unit [Rating: 15] Favorites ----------- Power Improved Ion Engine Engine Improved Ion Engine Propulsion Improved Aluminum Leg Treads Light Treads Leg Improved Aluminum Leg Utility Large Storage Unit Device Improved Terrain Scanner Storage Large Storage Unit Protection Light Armor Plating Weapon Subdweller Beam Cannon Energy Gun Medium Laser Energy Cannon Subdweller Beam Cannon Ballistic Gun Assault Rifle Launcher Grenade Launcher Impact Weapon Hammer Build | -11 -10 -10 -8 ------- Run | Yrd Mat Sub Mat Slots Evolved 4 | . . . 4 Power 1 | . . . 1 Propulsion 1 | . . . 1 Utility 1 | . . . 1 Weapon 1 | . . . 1 Parts Attached 31 | 8 11 9 3 Power 7 | 2 2 2 1 Engine 7 | 2 2 2 1 Core . | . . . . Reactor . | . . . . Propulsion 7 | 3 3 1 . Treads 1 | 1 . . . Leg 6 | 2 3 1 . Wheel . | . . . . Hover . | . . . . Flight . | . . . . Utility 8 | 1 4 2 1 Device 2 | . 1 1 . Storage 4 | 1 3 . . Processor . | . . . . Hackware . | . . . . Protection 2 | . . 1 1 Artifact . | . . . . Weapon 9 | 2 2 4 1 Energy Gun 4 | 2 1 1 . Energy Cannon 1 | . . 1 . Ballistic Gun 2 | . . 1 1 Ballistic Cannon . | . . . . Launcher 1 | . 1 . . Special Weapon . | . . . . Impact Weapon 1 | . . 1 . Slashing Weapon . | . . . . Piercing Weapon . | . . . . Special Melee Weapon . | . . . . Unidentified Prototypes . | . . . . Parts Lost 18 | . 2 7 9 Power 4 | . 1 1 2 Propulsion 3 | . . 1 2 Utility 4 | . . 1 3 Weapon 7 | . 1 4 2 Highest Loss Streak 9 | . 1 7 9 To Critical Strikes . | . . . . Average Slot Usage (%) 88 | . 88 93 62 Engine 13 | . 13 13 11 Leg 25 | . 27 26 11 Device 9 | . 8 10 7 Storage 13 | . 14 14 7 Protection 1 | . . 2 7 Energy Gun 9 | . 22 . . Energy Cannon 7 | . . 13 5 Impact Weapon 6 | . . 9 9 Naked Turns . | . . . . Heaviest Build 46 | 11 33 40 46 Greatest Support 26 | 20 26 26 26 Greatest Overweight (x) 8 | 1 1 2 8 Average Overweight (x) . | . . 1 1 Largest Inventory Capacity 25 | 8 25 15 15 Average Capacity 14 | 7 13 15 13 Most Carried 10 | 4 10 9 3 Average Carried 5 | 3 7 3 1 Final Capacity 15 | 8 15 15 5 Final Carried 9 | 4 9 3 3 Class Distribution -------------------- 100% | Mutant Dominant Class ---------------- Mutant | -10/Materials Mutant | -10/Subcaves Mutant | -8/Materials Resources | -11 -10 -10 -8 ----------- Run | Yrd Mat Sub Mat Matter Collected 567 | 257 169 125 16 Remotely . | . . . . Salvage Created 685 | . 448 133 104 Parts 41 | . 24 12 5 Haulers Intercepted 1 | . 1 . . Recyclers Shooed . | . . . . Parts Field Recycled . | . . . . Retrieved Matter . | . . . . Parts Self-Destructed 13 | . . 13 . Prevented . | . . . . Kills | -11 -10 -10 -8 ------- Run | Yrd Mat Sub Mat Combat Hostiles Destroyed 19 | . 10 7 2 Guns 8 | . 7 1 . Cannons 5 | . . 3 2 AOE 5 | . 2 3 . Classes Destroyed 6 | . 4 2 . Hauler 1 | . 1 . . Recycler 1 | . 1 . . Swarmer 6 | . 3 3 . Grunt 10 | . 7 1 2 Sentry 1 | . . 1 . Subdweller 2 | . . 2 . Best Kill Streak 3 | . 3 3 2 Combat Bots Only 3 | . 2 3 2 Max Kills in Single Turn 2 | . 2 2 1 Gunslinging 1 | . 1 . . Exploded 2 | . 2 2 . Melee . | . . . . Uniques/NPCs Destroyed . | . . . . Combat | -11 -10 -10 -8 -------- Run | Yrd Mat Sub Mat Hostile Shots Fired 188 | . 72 48 68 Missed 55 | . 19 15 21 Damage Taken 2348 | . 536 678 1134 Core 773 | . 121 101 551 Absorbed by Shields . | . . . . Core Remaining (%) 55 | 100 . 11 . Volleys Fired 94 | . 48 24 22 Largest 2 | . 2 2 1 Hottest 115 | . 115 95 80 Shots Fired 134 | . 81 31 22 Gun 101 | . 80 13 8 Cannon 23 | . . 9 14 Launcher 10 | . 1 9 . Special . | . . . . Kinetic 9 | . . 1 8 Thermal 115 | . 80 21 14 Explosive 10 | . 1 9 . Electromagnetic . | . . . . Robot Hit Streak 10 | . 10 10 7 Robot Miss Streak 4 | . 4 3 2 Penetration Max . | . . . . Secondary Targets 2 | . 2 . . Max Gunslinging Chain 1 | . 1 . . Shots Hit Robots 88 | . 48 24 16 Core Hits 33 | . 19 11 3 Critical Kills . | . . . . Critical Parts Destroyed . | . . . . Critical Strikes 5 | . 4 1 . Burn 5 | . 4 1 . Melee Attacks 28 | . . 28 . Impact 28 | . . 28 . Slashing . | . . . . Piercing . | . . . . Sneak Attacks . | . . . . Combat Hostiles . | . . . . Follow-up Attacks . | . . . . Damage Inflicted 1832 | . 750 700 382 Guns 912 | . 663 143 106 Cannons 442 | . . 166 276 Explosions 474 | . 83 391 . Melee . | . . . . Ramming 4 | . 4 . . Kinetic 116 | . . 10 106 Thermal 1238 | . 663 299 276 Explosive 474 | . 83 391 . Electromagnetic . | . . . . Impact . | . . . . Slashing . | . . . . Piercing . | . . . . Highest Corruption 1 | . . . 1 Average Corruption 1 | . . . 1 Corruption Purged . | . . . . Corruption Blocked . | . . . . Overload Shots . | . . . . Overflow Damage 16 | . . 10 6 Projectiles 6 | . . . 6 Explosions 10 | . . 10 . Melee . | . . . . Knockbacks . | . . . . Impact . | . . . . Kinetic . | . . . . Secondary . | . . . . Self-Inflicted Damage 31 | . . 31 . Shots 1 | . . 1 . Rammed . | . . . . Targets Rammed 3 | . 3 . . Kicked 3 | . 3 . . Crushed . | . . . . Highest Temperature 573 | . 573 42 566 Average Temperature 204 | . 177 19 323 Received Heat Transfer 690 | . 201 102 387 Effects 18 | . 9 . 9 Shutdowns 5 | . 2 . 3 Interference 2 | . 2 . . Matter Decay 1 | . 1 . . Damage (minor) 3 | . 1 . 2 Damage (major) 3 | . 3 . . Damage (core) 4 | . . . 4 Siege Activations . | . . . . Robots Corrupted . | . . . . Combat Hostiles . | . . . . Parts Fried . | . . . . Impact Corruptions . | . . . . Robots Melted 1 | . 1 . . Combat Hostiles 1 | . 1 . . Parts Melted 2 | . 2 . . Heat Transferred 3096 | . 2097 629 370 Parts Sabotaged . | . . . . Parts Stolen . | . . . . Parts Stripped . | . . . . Power Chain Reactions . | . . . . Alert | -11 -10 -10 -8 ------- Run | Yrd Mat Sub Mat Peak Influence 165 | . 165 . 40 Initial 20 | . . . 20 Average 47 | . 58 . 18 Maximum Alert Level . | . . . . Low Security (%) 100 | 100 100 . 100 Level 1 . | . . . . Level 2 . | . . . . Level 3 . | . . . . Level 4 . | . . . . Level 5 . | . . . . High Security . | . . . . Max Security . | . . . . Squads Dispatched 2 | . 2 . . Investigation 1 | . 1 . . Extermination . | . . . . Reinforcement 1 | . 1 . . Assault . | . . . . Garrison . | . . . . Intercept . | . . . . Searches Triggered . | . . . . Construction Impeded . | . . . . Haulers Reinforced . | . . . . Active Scanning Responses . | . . . . Cargo Convoy Interrupts . | . . . . Stealth | -11 -10 -10 -8 --------- Run | Yrd Mat Sub Mat Distress Signals 1 | . . . 1 Communications Jammed . | . . . . Distress Signals . | . . . . Times Spotted 29 | . 16 7 6 Peak Tracking Total 5 | . 4 3 5 Tactical Retreats . | . . . . Traps | -11 -10 -10 -8 ------- Run | Yrd Mat Sub Mat Traps Triggered . | . . . . Indirectly . | . . . . Trap Hack Attempts . | . . . . Triggered . | . . . . Disarmed . | . . . . Reprogrammed . | . . . . Reused . | . . . . Traps Extracted . | . . . . Installed . | . . . . Triggered . | . . . . Machines | -11 -10 -10 -8 ---------- Run | Yrd Mat Sub Mat Machines Disabled 1 | . 1 . . Max in Single Turn 1 | . 1 . . Machines Repaired . | . . . . Machines Dismantled . | . . . . Machines Sabotaged . | . . . . Overloaded Fab Kills . | . . . . Hacking | -11 -10 -10 -8 --------- Run | Yrd Mat Sub Mat Machines Accessed 2 | . 2 . . Terminals 1 | . 1 . . Fabricators . | . . . . Repair Stations . | . . . . Recycling Units 1 | . 1 . . Scanalyzers . | . . . . Garrison Access . | . . . . Total Hacks 5 | . 5 . . Successful 3 | . 3 . . Failed 2 | . 2 . . Catastrophic 1 | . 1 . . Database Lockouts . | . . . . Manual . | . . . . Terminals 3 | . 3 . . Fabricators . | . . . . Repair Stations . | . . . . Recycling Units 2 | . 2 . . Scanalyzers . | . . . . Garrison Access . | . . . . Terminal Hacks 1 | . 1 . . Maintenance Status 1 | . 1 . . Fabricator Hacks . | . . . . Repair Station Hacks . | . . . . Recycling Unit Hacks 2 | . 2 . . Report Inventory 2 | . 2 . . Scanalyzer . | . . . . Garrison Access Hacks . | . . . . Unauthorized Hacks . | . . . . Terminals . | . . . . Fabricators . | . . . . Repair Stations . | . . . . Recycling Units . | . . . . Scanalyzers . | . . . . Garrison Access . | . . . . Data Cores Recovered . | . . . . Used . | . . . . Hacking Detections 2 | . 2 . . Full Trace Events 1 | . 1 . . Feedback Events . | . . . . Feedback Blocked . | . . . . Robot Schematics Acquired . | . . . . Robots Built . | . . . . Authchips . | . . . . Time . | . . . . Total Robot Build Rating . | . . . . Part Schematics Acquired . | . . . . Parts Built . | . . . . Authchips . | . . . . Time . | . . . . Total Part Build Rating . | . . . . Parts Repaired . | . . . . Time . | . . . . Parts Recycled . | . . . . Recycled Matter . | . . . . Retrieved Matter . | . . . . Retrieved Components . | . . . . Parts Scanalyzed . | . . . . Part Schematics Acquired . | . . . . Parts Damaged . | . . . . Bothacking | -11 -10 -10 -8 ------------ Run | Yrd Mat Sub Mat Used RIF Installer . | . . . . Robots Hacked . | . . . . Non-combat . | . . . . Combat . | . . . . Robot Hacks Applied . | . . . . Relay Couplers Released . | . . . . Fabnet Peak Effective % . | . . . . Robots Rewired . | . . . . Allies Hacked . | . . . . Hacks Repelled . | . . . . Allies | -11 -10 -10 -8 -------- Run | Yrd Mat Sub Mat Total Allies . | . . . . Largest Group . | . . . . Highest-Rated Group . | . . . . Highest-Rated Ally . | . . . . Total Orders . | . . . . Ally Attacks . | . . . . Total Damage . | . . . . Kills . | . . . . Allies Corrupted . | . . . . Allies Melted . | . . . . Intel | -11 -10 -10 -8 ------- Run | Yrd Mat Sub Mat Robot Analysis Total . | . . . . Derelict Logs Recovered . | . . . . Drone Launches . | . . . . Drone Recoveries . | . . . . Exploration | -11 -10 -10 -8 ------------- Run | Yrd Mat Sub Mat Turns Passed 1814 | 70 669 935 140 Spaces Moved 574 | 50 296 186 42 Core 19 | 15 . . 4 Treads . | . . . . Legs 555 | 35 296 186 38 Wheels . | . . . . Hover . | . . . . Flight . | . . . . Fastest Speed 50 | 50 120 190 50 Average Speed 174 | 104 164 201 214 Slowest Speed 450 | 120 190 260 450 Overloaded Moves . | . . . . Propulsion Burnouts . | . . . . Robots Hopped . | . . . . Cave-ins Triggered 1 | . . 1 . Exploration Rate (%) 17 | 4 46 7 11 Regions Visited 3 Branch Regions 1 Pre-discovered Areas . | . . . . Known Exits Taken . | . . . . Unknown Exits Taken 3 | 1 1 1 . Scrap Searched . | . . . . Spaces Dug 10 | . . 10 . Terrain Destroyed 57 | . 13 44 . Melee 10 | . . 10 . Projectile 1 | . . 1 . AOE 46 | . 13 33 . Terrain Rammed . | . . . . Walls Destroyed . | . . . . Machines Disabled . | . . . . Actions | -11 -10 -10 -8 --------- Run | Yrd Mat Sub Mat Total 1203 | 68 399 666 70 Wait 434 | . 15 419 . Move 571 | 49 295 185 42 Hop . | . . . . Pick Up 30 | 10 16 1 3 Fast Attach 1 | . 1 . . Attach 25 | 7 8 7 3 Detach 2 | 1 1 . . Swap 5 | 1 2 2 . Drop 10 | . 10 . . Fire 94 | . 48 24 22 Melee 28 | . . 28 . Ram . | . . . . Kick 3 | . 3 . . Crush . | . . . . Escape Stasis . | . . . . Rewire . | . . . . Trap . | . . . . Miscellaneous . | . . . . Route ------- -11/Scrapyard -10/Materials (discovered 3 exits: [*Mat] / [*Min] / [*Sub]) -10/Subcaves (discovered 2 exits: [*Mat x2]) -8/Materials History --------- Turn | Location | Event 6 | -11/Scrapyard | Discovered new exit (range 15) 71 | -11/Scrapyard | Entered Materials 304 | -10/Materials | Build established: Mutant 532 | -10/Materials | Discovered new exit (range 15) 705 | -10/Materials | Discovered new exit (range 7) 716 | -10/Materials | Discovered new exit (range 10) 740 | -10/Materials | Entered Subcaves 752 | -10/Subcaves | Discovered new exit (range 12) 767 | -10/Subcaves | Core integrity fell below 50% 811 | -10/Subcaves | Crushed by falling debris 836 | -10/Subcaves | Lost 7 parts (1p1n1u4w) 1629 | -10/Subcaves | Core integrity fell below 20% 1647 | -10/Subcaves | Discovered new exit (range 15) 1675 | -10/Subcaves | Entered Materials 1675 | -8/Materials | Evolved 4 slots: Power x1, Propulsion x1, Utility x1, Weapon x1 1769 | -8/Materials | Core integrity fell below 50% 1789 | -8/Materials | Core integrity fell below 20% 1815 | -8/Materials | Destroyed by G-47 Trooper with Particle Gun Last Messages --------------- 01786_ K-01 Serf suffers critical hit (Burn). 01787_ Acquired 16 matter. 01788_ K-01 Serf collects debris. 01790_ Lgt. Armor Plating destroyed. 01792_ K-01 Serf collects debris. 01794_ Lrg. Storage Unit destroyed. 01796_ K-01 Serf collects debris. 01796_ Acquired Assault Rifle. 01796_ K-01 Serf collects debris. 01797_ Imp. Terrain Scanner destroyed. 01797_ System corrupted by crushing effect (+1). 01799_ K-01 Serf collects debris. 01802_ R-06 Scavenger collects Aluminum Leg. 01803_ K-01 Serf collects debris. 01807_ R-06 Scavenger collects Imp. Heat Sink. 01810_ Critical hit (Burn: +37). 01810_ K-01 Serf collects debris. 01812_ Assault Rifle destroyed. 01814_ Acquired Assault Rifle. 01815_ K-01 Serf collects debris. Map ----- +----------------------------------------------------+ | ?????????????????#????? ???# + #???? | | ???????????????????????????# # #???? | | ???????????????????????????# # #???? | | ?????????????????????? ????# # #???? | | ?????????????????????? ?#??# # #???# | | ??????????????????????????## ##########???? | | ????????????????"?? ???????# #??????????#?? | | ???????????????????????????# #???????????#? | | ????????????????????? ?????# #??????#?????? | | ???????????????? ????? ????# #????#???????? | | ????????????????????#??????# ##???????????? | | ????????????????"???# ????# #????????????# | | ????????????????????# ????# # ?????? ????? | | ???????????????? ??# ???# #? ""????????? | | ??????????????###+### #### # ???????????? | | ????????????? u # ??????????? | | ????????????? [ k???? ???#???? | | ????????????? #?????????#??? | | ????????????# """ #???? T??????? | | ????????????# """ #????????????? | | ????????????# """ #??????? ????? | | ????????????# #????????????? | | ????????????# g ##???????????? | | ????????????# g #??#?????????? | | ????????????# b %= #??#??????#??? | | ????????????# !@ #????????????? | | ?????????? ![a #?? ?????????? | | ?????????? !^[ #????????????? | | ??????????? #????????????? | | ???????????## #????????????? | | ????????????###+######=== r +????????????? | | ??????????????? ?????#== #????????????? | | ?????????????????????#== #????????????? | | ?????????????????????" #????????????? | | ????????????????????R #????????????? | | ????????????????????"" " " ????????????? | | ????????????????????##u "G" ???????????? | | ?????????????????????# """ ???????????? | | ?????????????????????# ??? ???????????? | | ?????????????????????# ???? ?????????????? | | ???????????????????????#"Y??????????????????? | | ????????????????????????????????????????????? | | ????????????????????????????????????????????? | | ????????????????????????????????????????????? | | ????????????????????????????????????????????? | | ????????????????????????????????????????????? | | ????????????????????????????????????????????? | | ????????????????????????????????????????????? | | ????????????????????????????????????????????? | | ????????????????????????????????????????????? | +----------------------------------------------------+ Best States ------------- Heat Dissipation 35 Energy Generation 17 Energy Capacity 415 Matter Stores 300 Matter Capacity 300 Sight Range 16 Terrain Scan Range 16 Terrain Scan Density 10 Armor Coverage 150 Evasion (%) 55 Item Schematics ----------------- None Robot Schematics ------------------ None Fabricated ------------ Nothing Alien Tech Used ----------------- None Achievements -------------- None Challenges ------------ None Game ------ Seed InsulatedThermicSubcomponent Manual? 0 Play Time 00:16:25 Cumulative 19.9 hours Start 2024.04.20 @ 12:36:32 End 2024.04.20 @ 12:52:25 Sessions 1 Manual Loads 0 Difficulty Rogue Special Mode None Game No. 34 Rogue 34 Adventurer 0 Explorer 0 Win Type - Total 0 Types 0/0/0/0/0/0/0/0/0 Lore% 23 Gallery% 20 Achievement% 19 Wizard Run 0 Options --------- Layout 1 ASCII 0 Keyboard 0 Movement Mouse Keybinds 0 Fullscreen 1 Font 24/Smallcaps Map View 50x35 Zoom Use 0% Tactical HUD 1 Map Filters NONE Filters NONE Steam 0 RUN: 93b83793-c169-4b57-994e-c59f4eb25587